bitfinex/quotes_SOLUSD_20240926
["timestamp","ask_amount","ask_price","bid_price","bid_amount"]
[1727372570438,0.3533519,156.14,156.11,19.71537434]
[1727372570763,0.3533519,156.14,156.09,19.71537434]
[1727372571108,0.3533519,156.14,156.08,19.71537434]
[1727372571316,0.3533519,156.14,156.11,19.71537434]
[1727372574137,0.3533519,156.14,156.13,19.71537434]
[1727372577336,0.3533519,156.14,156.13,39.71537434]
[1727372579336,0.0721489,156.16,156.13,39.71537434]
[1727372579542,0.0721489,156.16,156.15,19.71537434]
[1727372580057,0.0721489,156.16,156.15,39.71537434]
[1727372581757,0.0721489,156.16,156.15,63.74323834]
[1727372581968,0.4289575,156.21,156.16,20.0]
[1727372582177,0.4289575,156.21,156.18,19.71537434]
[1727372582393,0.4289575,156.21,156.2,19.71537434]
[1727372585952,0.4289575,156.21,156.2,63.74323834]
[1727372586278,0.4289575,156.21,156.2,39.71537434]
[1727372586585,0.4713941,156.27,156.2,39.71537434]
[1727372586586,0.4713941,156.27,156.21,44.027864]
[1727372586753,0.4713941,156.27,156.22,19.71537434]
[1727372587874,0.4713941,156.27,156.21,20.12549]
[1727372587875,0.4060323,156.27,156.26,19.71537434]
[1727372588299,0.4060323,156.27,156.24,19.71537434]
[1727372589779,0.4060323,156.27,156.26,19.71537434]
[1727372591791,0.4060323,156.27,156.26,39.71537434]
[1727372592080,0.0801094,156.3,156.27,0.12549]
[1727372592292,0.0801094,156.3,156.28,19.71537434]
[1727372592765,0.0801094,156.3,156.28,12.29675455]
[1727372596168,0.0801094,156.3,156.29,20.0]
[1727372596485,0.5322605,156.35,156.3,24.027864]
[1727372596677,0.5322605,156.35,156.32,19.71537434]
[1727372597392,0.5322605,156.35,156.31,20.0]
[1727372597594,0.5322605,156.35,156.27,16.369]
[1727372597595,0.5322605,156.35,156.28,39.71537434]
[1727372598899,0.5322605,156.35,156.23,1.62794007]
[1727372598900,6.3486,156.34,156.23,16.5427]
[1727372599073,6.3967,156.33,156.23,16.5427]
[1727372600184,6.3967,156.33,156.24,20.0]
[1727372601494,12.745,156.34,156.24,20.0]
[1727372602197,6.3973,156.32,156.24,20.0]
[1727372602502,6.3973,156.32,156.23,16.5427]
[1727372602503,6.3486,156.34,156.21,20.0]
[1727372602676,6.3971,156.32,156.23,20.0]
[1727372603198,12.7449,156.34,156.23,20.0]
[1727372603501,6.3968,156.33,156.23,20.0]
[1727372603700,6.3971,156.32,156.23,20.0]
[1727372604195,6.3486,156.34,156.24,23.902374]
[1727372604496,7.94796547,156.34,156.23,20.0]
[1727372604701,6.3972,156.32,156.23,20.0]
[1727372604897,7.99662367,156.32,156.23,20.0]
[1727372605292,1.59942367,156.32,156.21,20.0]
[1727372605491,6.3984,156.29,156.21,20.0]
[1727372605693,16.0881,156.28,156.19,16.5427]
[1727372606286,22.4869,156.28,156.19,16.5427]
[1727372606475,16.0881,156.28,156.19,16.5427]
[1727372606677,22.4871,156.28,156.18,26.10207434]
[1727372607090,16.0881,156.28,156.18,19.71537434]
[1727372607803,16.0881,156.28,156.19,24.027864]
[1727372608334,16.0881,156.28,156.2,20.0]
[1727372609276,16.0881,156.28,156.21,23.776884]
[1727372609481,15.4344,156.33,156.25,23.776884]
[1727372610200,15.4344,156.33,156.27,23.776884]
[1727372611902,6.3486,156.34,156.29,23.902374]
[1727372612093,0.5322605,156.35,156.3,19.71537434]
[1727372612306,0.5322605,156.35,156.31,20.0]
[1727372612616,0.5322605,156.35,156.31,9.61439929]
[1727372612783,0.5322605,156.35,156.31,23.902374]
[1727372613600,0.5322605,156.35,156.32,19.71537434]
[1727372614210,0.5322605,156.35,156.33,23.902374]
[1727372615887,0.5322605,156.35,156.34,0.12549]
[1727372616522,0.5322605,156.35,156.34,20.0]
[1727372616814,0.5322605,156.35,156.34,20.12549]
[1727372618500,0.0322605,156.35,156.34,20.12549]
[1727372619315,0.0322605,156.35,156.34,20.0]
[1727372619494,0.0322605,156.35,156.34,63.74323834]
[1727372620416,0.0322605,156.35,156.34,20.0]
[1727372620618,0.0322605,156.35,156.33,20.0]
[1727372622731,0.0322605,156.35,156.3,19.71537434]
[1727372623037,0.0322605,156.35,156.28,19.71537434]
[1727372624328,0.0322605,156.35,156.29,20.0]
[1727372625007,15.9753,156.34,156.26,19.71537434]
[1727372625225,22.3719,156.34,156.24,19.71537434]
[1727372625423,15.9753,156.34,156.24,19.71537434]
[1727372626506,15.9753,156.34,156.25,44.027864]
[1727372626924,22.3717,156.34,156.25,44.027864]
[1727372627255,15.9753,156.34,156.25,24.027864]
[1727372627544,15.9753,156.34,156.26,19.71537434]
[1727372627914,15.9753,156.34,156.28,19.71537434]
[1727372628119,6.1147605,156.35,156.3,19.71537434]
[1727372628626,6.1147605,156.35,156.31,20.0]
[1727372630429,6.1147605,156.35,156.29,20.0]
[1727372630938,6.1147605,156.35,156.31,20.0]
[1727372631849,6.1147605,156.35,156.32,19.71537434]
[1727372633019,6.1147605,156.35,156.31,20.0]
[1727372633222,6.1147605,156.35,156.29,20.0]
[1727372633423,6.1147605,156.35,156.27,20.0]
[1727372633728,1.5991527,156.34,156.25,19.71537434]
[1727372634039,15.9753,156.33,156.25,19.71537434]
[1727372635624,15.9753,156.33,156.26,20.0]
[1727372636746,15.9753,156.33,156.27,19.71537434]
[1727372638139,15.9753,156.33,156.28,20.0]
[1727372645464,6.1147605,156.35,156.31,19.71537434]
[1727372645666,0.0322605,156.35,156.33,19.71537434]
[1727372645839,0.0322605,156.35,156.34,20.0]
[1727372646447,0.0801094,156.39,156.34,44.027864]
[1727372646665,0.0801094,156.39,156.37,19.71537434]
[1727372648232,15.9038,156.41,156.37,19.71537434]
[1727372648453,0.1575395,156.39,156.37,19.71537434]
[1727372648659,0.1575395,156.39,156.38,20.0]
[1727372648954,0.1575395,156.39,156.38,12.58285]
[1727372649134,0.3419634,156.41,156.39,23.902374]
[1727372649332,0.3419634,156.41,156.4,19.71537434]
[1727372650055,0.3419634,156.41,156.4,43.61774834]
[1727372650251,0.3419634,156.41,156.4,43.74323834]
[1727372650551,0.3419634,156.41,156.4,19.71537434]
[1727372650961,0.3419634,156.41,156.4,39.71537434]
[1727372651176,0.3419634,156.41,156.4,20.0]
[1727372651638,0.3419634,156.41,156.39,20.0]
[1727372652155,0.3419634,156.41,156.37,20.0]
[1727372656258,0.3419634,156.41,156.34,19.71537434]
[1727372656945,6.1751,156.4,156.32,19.71537434]
[1727372657644,6.1751,156.4,156.33,20.0]
[1727372658545,6.1751,156.4,156.27,1.5910574]
[1727372658753,6.3956,156.36,156.25,16.5017]
[1727372658942,23.776884,156.38,156.25,36.21707434]
[1727372658943,7.99449518,156.37,156.25,36.21707434]
[1727372659143,6.3955,156.36,156.26,19.71537434]
[1727372659555,7.99461206,156.36,156.26,19.71537434]
[1727372659750,6.3955,156.36,156.26,19.71537434]
[1727372660052,6.52059,156.37,156.24,6.0242]
[1727372660360,6.52059,156.37,156.27,20.0]
[1727372660537,6.52059,156.37,156.26,19.71537434]
[1727372660740,13.11659525,156.37,156.27,20.0]
[1727372660940,6.3955,156.36,156.27,20.0]
[1727372662245,13.11659525,156.37,156.27,20.0]
[1727372664759,6.59600525,156.37,156.28,43.74323834]
[1727372665056,15.044,156.39,156.3,43.61774834]
[1727372665254,15.044,156.39,156.31,20.0]
[1727372666555,21.4383,156.39,156.31,20.0]
[1727372667451,23.0370794,156.39,156.31,20.0]
[1727372667831,15.044,156.39,156.31,20.0]
[1727372668954,6.3947,156.38,156.29,20.0]
[1727372669671,21.4383,156.39,156.29,20.0]
[1727372671844,21.4383,156.39,156.3,0.12549]
[1727372672045,15.044,156.39,156.3,24.027864]
[1727372672346,15.044,156.39,156.31,20.0]
[1727372673860,15.044,156.39,156.32,43.74323834]
[1727372674871,15.044,156.39,156.32,19.96635434]
[1727372675045,15.044,156.39,156.33,20.0]
[1727372676676,16.64253871,156.39,156.33,20.0]
[1727372676981,16.64253871,156.39,156.31,0.12549]
[1727372677170,16.64253871,156.39,156.31,20.12549]
[1727372677378,23.03683871,156.39,156.31,20.12549]
[1727372678069,23.03683871,156.39,156.31,20.0]
[1727372678967,16.64253871,156.39,156.3,19.84086434]
[1727372679277,15.044,156.39,156.31,20.0]
[1727372679459,21.4382,156.39,156.31,20.0]
[1727372679785,31.77041852,156.38,156.31,20.0]
[1727372680074,23.776884,156.38,156.29,20.12549]
[1727372680645,23.776884,156.38,156.3,0.12549]
[1727372681657,21.4383,156.39,156.31,20.0]
[1727372682246,15.044,156.39,156.31,20.0]
[1727372683770,15.044,156.39,156.32,19.84086434]
[1727372683980,15.044,156.39,156.33,20.0]
[1727372684750,15.044,156.39,156.34,19.84086434]
[1727372684956,15.044,156.39,156.34,19.71537434]
[1727372686578,15.044,156.39,156.35,0.25098]
[1727372688073,6.1751,156.4,156.36,19.71537434]
[1727372688282,0.3419634,156.41,156.36,19.71537434]
[1727372690184,0.3419634,156.41,156.35,20.25098]
[1727372693768,0.3419634,156.41,156.35,20.0]
[1727372694372,0.3419634,156.41,156.32,19.71537434]
[1727372694580,0.3419634,156.41,156.33,20.12549]
[1727372694787,0.3419634,156.41,156.33,0.12549]
[1727372695082,0.3419634,156.41,156.34,20.0]
[1727372695888,25.71730751,156.41,156.34,20.0]
[1727372696064,0.3419634,156.41,156.34,20.0]
[1727372696587,6.7353634,156.41,156.34,20.0]
[1727372696758,23.776884,156.4,156.34,20.0]
[1727372696954,0.3419634,156.41,156.34,20.0]
[1727372697159,24.1188474,156.41,156.34,20.0]
[1727372697383,0.3419634,156.41,156.34,20.0]
[1727372697965,0.3419634,156.41,156.35,0.12549]
[1727372699562,0.3419634,156.41,156.34,20.0]
[1727372701891,0.3419634,156.41,156.35,19.84086434]
[1727372702186,0.3419634,156.41,156.39,19.71537434]
[1727372703683,0.3419634,156.41,156.36,20.0]
[1727372705692,0.3419634,156.41,156.37,0.12549]
[1727372706080,0.3419634,156.41,156.37,19.96635434]
[1727372706386,0.3419634,156.41,156.4,0.25098]
[1727372706693,0.3419634,156.41,156.4,20.25098]
[1727372707291,0.3419634,156.41,156.4,44.027864]
[1727372708479,0.1180422,156.44,156.41,23.776884]
[1727372708778,0.243755,156.44,156.43,19.96635434]
[1727372709086,0.243755,156.44,156.41,0.25098]
[1727372709484,0.243755,156.44,156.41,19.96635434]
[1727372709677,0.243755,156.44,156.43,0.25098]
[1727372710071,0.243755,156.44,156.43,0.12549]
[1727372712498,0.243755,156.44,156.43,0.25098]
[1727372713977,0.243755,156.44,156.43,19.96635434]
[1727372714178,0.243755,156.44,156.43,39.96635434]
[1727372716992,0.243755,156.44,156.42,20.25098]
[1727372718965,0.243755,156.44,156.4,20.0]
[1727372719186,0.243755,156.44,156.38,20.0]
[1727372719693,0.243755,156.44,156.43,19.71537434]
[1727372719983,0.243755,156.44,156.43,39.71537434]
[1727372720200,0.243755,156.44,156.43,20.25098]
[1727372720772,0.243755,156.44,156.42,20.25098]
[1727372721272,0.243755,156.44,156.43,39.96635434]
[1727372722177,0.2539364,156.47,156.43,113.74323834]
[1727372722497,0.2539364,156.47,156.46,63.74323834]
[1727372723071,0.0801094,156.49,156.48,93.902374]
[1727372723283,0.2539364,156.51,156.48,93.902374]
[1727372723284,0.2539364,156.51,156.5,94.027864]
[1727372723612,0.1180422,156.54,156.53,20.25098]
[1727372723786,0.1180422,156.54,156.53,44.027864]
[1727372724474,0.1180422,156.54,156.53,63.74323834]
[1727372724794,0.0801094,156.58,156.57,20.25098]
[1727372724995,0.1802774,156.58,156.57,20.25098]
[1727372725296,0.1802774,156.58,156.54,20.25098]
[1727372726681,0.1802774,156.58,156.57,39.96635434]
[1727372732202,0.5063486,156.63,156.57,63.74323834]
[1727372732407,0.5063486,156.63,156.6,19.71537434]
[1727372733201,0.5063486,156.63,156.62,19.71537434]
[1727372733422,0.5063486,156.63,156.62,39.96635434]
[1727372733612,0.5063486,156.63,156.62,63.74323834]
[1727372733981,0.0801094,156.67,156.63,20.25098]
[1727372734188,0.0801094,156.67,156.65,19.71537434]
[1727372734381,0.3883064,156.7,156.65,19.71537434]
[1727372734382,0.3883064,156.7,156.67,0.12549]
[1727372734693,0.3883064,156.7,156.68,19.71537434]
[1727372735205,0.3883064,156.7,156.69,0.12549]
[1727372735781,0.3883064,156.7,156.69,20.12549]
[1727372737192,0.3883064,156.7,156.68,20.0]
[1727372738504,0.3883064,156.7,156.69,39.71537434]
[1727372740018,0.3883064,156.7,156.61,7.37152436]
[1727372740312,0.3883064,156.7,156.62,19.71537434]
[1727372741687,0.3883064,156.7,156.63,20.0]
[1727372741890,0.3883064,156.7,156.6,19.71537434]
[1727372741891,6.4973,156.69,156.6,19.71537434]
[1727372742087,15.5262,156.67,156.6,19.71537434]
[1727372743130,15.5262,156.67,156.63,19.71537434]
[1727372743611,6.4973,156.69,156.63,19.71537434]
[1727372747334,6.4973,156.69,156.64,20.0]
[1727372748615,6.4973,156.69,156.63,19.71537434]
[1727372749408,6.4973,156.69,156.64,20.0]
[1727372749720,6.4973,156.69,156.65,19.71537434]
[1727372750493,6.4973,156.69,156.63,19.71537434]
[1727372750809,6.4973,156.69,156.64,20.0]
[1727372753321,6.4973,156.69,156.6,50.0]
[1727372753322,1.59549454,156.68,156.6,20.0]
[1727372753502,7.97799454,156.68,156.59,20.0]
[1727372754120,23.776884,156.68,156.59,39.71537434]
[1727372754911,6.4973,156.69,156.59,39.71537434]
[1727372755308,23.776884,156.68,156.59,39.71537434]
[1727372755516,23.776884,156.68,156.6,0.25098]
[1727372755703,25.37270423,156.68,156.6,0.12549]
[1727372756912,23.776884,156.66,156.56,19.71537434]
[1727372757105,15.6948,156.62,156.52,19.71537434]
[1727372757294,17.29123594,156.62,156.52,19.71537434]
[1727372758116,17.29123594,156.62,156.54,19.60582688]
[1727372758627,17.29123594,156.62,156.55,20.0]
[1727372759414,23.776884,156.61,156.52,19.60582688]
[1727372759622,23.776884,156.61,156.5,7.37152436]
[1727372759623,23.776884,156.59,156.5,19.60582688]
[1727372760722,6.5321,156.6,156.5,19.60582688]
[1727372761233,6.5321,156.6,156.53,20.0]
[1727372761925,6.5321,156.6,156.53,20.25098]
[1727372762307,6.5321,156.6,156.53,20.0]
[1727372763003,1.59665335,156.59,156.53,20.0]
[1727372763217,6.5321,156.6,156.53,20.0]
[1727372765129,6.5321,156.6,156.55,19.60582688]
[1727372765305,6.5321,156.6,156.57,19.60582688]
[1727372765631,15.6948,156.62,156.57,19.60582688]
[1727372765807,6.5321,156.64,156.57,19.60582688]
[1727372766011,6.5321,156.64,156.59,19.60582688]
[1727372767406,6.5321,156.64,156.57,19.60582688]
[1727372767611,6.5321,156.64,156.58,20.0]
[1727372767808,6.5321,156.64,156.56,0.25098]
[1727372768131,1.59621047,156.63,156.56,20.25098]
[1727372768506,1.59621047,156.63,156.56,20.12549]
[1727372768930,6.5321,156.64,156.56,20.12549]
[1727372769324,8.1283672,156.64,156.56,20.12549]
[1727372769521,8.1283672,156.64,156.56,20.0]
[1727372770848,14.5123672,156.64,156.56,20.0]
[1727372771147,30.161684,156.63,156.54,20.0]
[1727372771317,1.59643401,156.62,156.54,20.0]
[1727372771515,15.0225,156.61,156.51,26.97735124]
[1727372771720,1.5966373,156.6,156.51,26.97735124]
[1727372772930,1.5966373,156.6,156.52,20.0]
[1727372773255,30.308984,156.59,156.5,20.0]
[1727372773549,30.308984,156.59,156.51,19.60582688]
[1727372773750,6.5321,156.59,156.52,20.0]
[1727372776339,6.5321,156.59,156.53,0.25098]
[1727372776651,6.5321,156.59,156.53,19.85680688]
[1727372779232,6.5321,156.59,156.54,20.0]
[1727372783246,6.5321,156.59,156.5,51.61655045]
[1727372783247,6.5321,156.59,156.52,20.0]
[1727372783554,1.59668659,156.58,156.52,20.0]
[1727372783752,1.59668659,156.58,156.49,19.60582688]
[1727372784144,6.5321,156.59,156.51,19.60582688]
[1727372785254,6.5321,156.59,156.52,20.0]
[1727372787256,6.5321,156.59,156.54,19.60582688]
[1727372787437,15.0225,156.61,156.56,19.60582688]
[1727372787636,15.0225,156.61,156.58,19.60582688]
[1727372788639,6.551,156.63,156.58,19.60582688]
[1727372789144,6.551,156.63,156.59,20.0]
[1727372789338,15.467,156.65,156.6,19.60582688]
[1727372789556,0.2681628,156.66,156.62,19.60582688]
[1727372792470,0.2681628,156.66,156.63,20.0]
[1727372792648,0.2681628,156.66,156.65,20.0]
[1727372792964,6.5038,156.71,156.66,0.25098]
[1727372793138,6.5038,156.71,156.68,19.60582688]
[1727372793751,0.4053648,156.72,156.68,19.60582688]
[1727372794363,0.4053648,156.72,156.7,19.60582688]
[1727372794658,0.4053648,156.72,156.69,20.0]
[1727372795359,2.00059732,156.72,156.67,20.0]
[1727372795559,0.4053648,156.72,156.67,20.0]
[1727372796263,0.4053648,156.72,156.66,19.60582688]
[1727372797159,2.00068082,156.72,156.65,20.0]
[1727372798161,24.1822488,156.72,156.65,20.0]
[1727372798735,1.59547927,156.71,156.65,20.0]
[1727372798958,1.59547927,156.71,156.63,19.60582688]
[1727372799158,24.1822488,156.72,156.64,20.0]
[1727372800149,24.1822488,156.72,156.65,19.60582688]
[1727372801064,1.59551201,156.71,156.64,20.0]
[1727372801438,6.5038,156.7,156.64,20.0]
[1727372801639,1.59567702,156.69,156.64,20.0]
[1727372802456,6.5038,156.7,156.64,20.0]
[1727372803261,6.5038,156.7,156.65,19.60582688]
[1727372805268,0.4053648,156.72,156.65,19.60582688]
[1727372808766,30.427284,156.69,156.59,7.37152436]
[1727372809066,8.24621471,156.69,156.59,26.97735124]
[1727372809843,39.842984,156.68,156.59,26.97735124]
[1727372810149,1.59589731,156.67,156.59,19.60582688]
[1727372810349,1.59589731,156.67,156.57,19.60582688]
[1727372810665,23.776884,156.66,156.57,19.60582688]
[1727372810881,1.59616061,156.65,156.57,19.60582688]
[1727372811874,23.776884,156.64,156.57,19.60582688]
[1727372812173,30.160184,156.66,156.58,20.0]
[1727372812377,0.12549,156.66,156.58,20.0]
[1727372812748,23.776884,156.67,156.58,20.0]
[1727372813845,1.59612159,156.66,156.58,20.0]
[1727372814278,23.776884,156.65,156.58,20.0]
[1727372814484,1.59627304,156.64,156.58,20.0]
[1727372815053,6.6504,156.63,156.58,20.0]
[1727372815251,1.59629569,156.62,156.56,20.0]
[1727372816151,6.6504,156.63,156.56,20.0]
[1727372819775,15.2836,156.62,156.56,20.0]
[1727372819981,15.2836,156.62,156.55,19.60582688]
[1727372819982,1.5965895,156.61,156.55,20.0]
[1727372820192,1.5965895,156.61,156.54,20.0]
[1727372820476,1.5965895,156.61,156.53,0.2873226]
[1727372821083,6.3861,156.59,156.53,0.2873226]
[1727372821388,6.3428,156.57,156.53,0.2873226]
[1727372822582,6.3428,156.61,156.55,19.60582688]
[1727372822758,6.3428,156.61,156.58,19.60582688]
[1727372823278,15.2836,156.62,156.58,19.60582688]
[1727372824963,6.3428,156.65,156.58,19.60582688]
[1727372825164,7.93889052,156.65,156.58,19.60582688]
[1727372826165,6.3428,156.65,156.6,19.60582688]
[1727372827085,7.93883287,156.65,156.6,19.60582688]
[1727372827287,6.3428,156.65,156.6,19.60582688]
[1727372833563,6.3428,156.65,156.62,19.60582688]
[1727372833877,15.2836,156.66,156.62,19.60582688]
[1727372834566,15.2836,156.66,156.6,43.63369088]
[1727372834870,15.2836,156.66,156.61,24.17219913]
[1727372835072,15.2836,156.66,156.61,20.0]
[1727372835673,15.2836,156.66,156.62,19.60582688]
[1727372838886,6.3428,156.69,156.64,19.60582688]
[1727372839886,7.93831769,156.69,156.64,19.60582688]
[1727372840094,7.93831769,156.69,156.63,20.0]
[1727372840778,7.93831769,156.69,156.61,43.776884]
[1727372841301,7.93831769,156.69,156.61,20.0]
[1727372841971,6.3428,156.69,156.61,20.0]
[1727372842167,6.3428,156.69,156.65,19.60582688]
[1727372842792,16.5327,156.7,156.66,20.0]
[1727372843794,16.5327,156.7,156.65,19.60582688]
[1727372844002,16.5327,156.7,156.63,19.60582688]
[1727372844299,16.5327,156.7,156.64,20.0]
[1727372844605,1.59560095,156.69,156.64,20.0]
[1727372844897,1.59560095,156.69,156.62,20.0]
[1727372845393,1.59560095,156.69,156.56,78.53556802]
[1727372845394,6.351,156.68,156.57,19.60582688]
[1727372845577,18.12879117,156.67,156.57,19.60582688]
[1727372846794,24.51159117,156.67,156.57,19.60582688]
[1727372847014,24.51159117,156.67,156.54,0.2238588]
[1727372847015,24.51159117,156.67,156.55,19.60582688]
[1727372847180,6.3833,156.66,156.55,19.60582688]
[1727372847485,1.59628393,156.65,156.55,19.60582688]
[1727372847684,7.97988393,156.65,156.55,19.60582688]
[1727372847995,16.5327,156.63,156.54,0.2238588]
[1727372848195,1.59646815,156.62,156.54,0.2238588]
[1727372848578,16.5327,156.63,156.55,19.60582688]
[1727372848979,1.59646657,156.62,156.55,19.60582688]
[1727372849496,18.12916701,156.63,156.55,19.60582688]
[1727372849703,18.12902514,156.63,156.56,23.776884]
[1727372850398,16.5327,156.63,156.56,23.776884]
[1727372852103,18.12901311,156.63,156.56,23.776884]
[1727372853004,18.12901311,156.63,156.54,0.3493488]
[1727372853181,18.12901311,156.63,156.54,24.1262328]
[1727372855000,18.12901311,156.63,156.54,24.0007428]
[1727372855804,16.5327,156.63,156.55,19.60582688]
[1727372856380,1.59647572,156.62,156.55,19.60582688]
[1727372856883,1.59647572,156.62,156.54,0.2238588]
[1727372857495,6.0147,156.6,156.54,0.2238588]
[1727372857695,16.3494,156.58,156.54,0.2238588]
[1727372857877,1.59703074,156.57,156.54,0.2238588]
[1727372858509,6.0147,156.56,156.54,0.2238588]
[1727372858707,1.59720847,156.55,156.54,0.2238588]
[1727372858887,1.84818847,156.55,156.54,0.2238588]
[1727372859092,16.3494,156.54,156.49,0.2533598]
[1727372859280,1.5974778,156.53,156.49,0.2533598]
[1727372862218,12.4037,156.52,156.49,0.2533598]
[1727372862399,1.59778594,156.51,156.49,0.2533598]
[1727372862711,6.0147,156.52,156.49,0.2533598]
[1727372862915,1.59748766,156.51,156.49,0.2533598]
[1727372864313,7.98678766,156.51,156.49,0.2533598]
[1727372864609,1.59748766,156.51,156.49,0.2533598]
[1727372865421,7.98678766,156.51,156.49,0.2533598]
[1727372866309,1.59748766,156.51,156.49,0.2533598]
[1727372866509,24.027864,156.51,156.49,0.2533598]
[1727372870804,1.59783902,156.5,156.49,0.2533598]
[1727372872003,32.01540302,156.5,156.49,0.2533598]
[1727372872409,25.62570302,156.5,156.49,0.2533598]
[1727372872610,24.027864,156.5,156.49,0.2533598]
[1727372873897,6.3894,156.51,156.49,0.2533598]
[1727372874098,6.3894,156.51,156.44,0.3334692]
[1727372874099,0.12549,156.48,156.44,0.3334692]
[1727372874305,25.99732688,156.46,156.44,0.3334692]
[1727372874512,25.62635375,156.45,156.44,0.3334692]
[1727372876831,44.027864,156.44,156.4,0.371402]
[1727372876999,24.027864,156.41,156.4,0.371402]
[1727372877195,25.62687641,156.41,156.4,0.371402]
[1727372877399,24.027864,156.41,156.4,0.371402]
[1727372877597,0.12549,156.42,156.4,0.371402]
[1727372877820,24.027864,156.42,156.4,0.371402]
[1727372878324,1.59883137,156.41,156.4,0.371402]
[1727372880529,23.902374,156.43,156.4,0.371402]
[1727372880735,1.59873542,156.41,156.4,0.371402]
[1727372881723,23.776884,156.41,156.4,0.371402]
[1727372883530,0.25098,156.43,156.4,0.371402]
[1727372883861,24.027864,156.43,156.4,0.371402]
[1727372885746,1.59871569,156.42,156.4,0.371402]
[1727372885950,23.776884,156.41,156.4,0.371402]
[1727372886143,30.421264,156.41,156.4,0.371402]
[1727372886728,24.027864,156.41,156.4,0.371402]
[1727372886948,23.902374,156.41,156.4,0.371402]
[1727372887145,23.776884,156.41,156.4,0.371402]
[1727372889356,25.37574363,156.41,156.4,0.371402]
[1727372891067,32.02012363,156.41,156.4,0.371402]
[1727372892665,52.02012363,156.41,156.4,0.371402]
[1727372895446,58.69225873,156.41,156.4,0.371402]
[1727372896557,57.0933991,156.41,156.4,0.371402]
[1727372897061,50.6999991,156.41,156.4,0.371402]
[1727372897674,57.0933991,156.41,156.4,0.371402]
[1727372900736,58.69265175,156.41,156.4,0.371402]
[1727372902953,57.0933991,156.41,156.4,0.371402]
[1727372903160,58.69264964,156.41,156.4,0.371402]
[1727372905277,77.90264964,156.41,156.4,0.371402]
[1727372905447,24.027864,156.36,156.35,0.3334692]
[1727372905751,25.62739146,156.36,156.35,0.3334692]
[1727372906263,32.02279146,156.36,156.35,0.3334692]
[1727372909649,52.02279146,156.36,156.35,0.3334692]
[1727372910248,50.423264,156.36,156.35,0.3334692]
[1727372910454,24.027864,156.36,156.35,0.3334692]
[1727372910657,44.027864,156.36,156.35,0.3334692]
[1727372911173,52.02279924,156.36,156.35,0.3334692]
[1727372913249,24.027864,156.36,156.35,0.3334692]
[1727372913867,6.66895976,156.39,156.35,0.3334692]
[1727372914178,6.66895976,156.39,156.35,20.00247564]
[1727372914550,12.685,156.47,156.37,19.66900644]
[1727372914760,12.95814281,156.47,156.37,19.66900644]
[1727372914979,6.3914,156.46,156.37,19.66900644]
[1727372915870,1.59859535,156.45,156.37,19.66900644]
[1727372916566,23.902374,156.44,156.37,19.66900644]
[1727372916776,1.59859609,156.43,156.35,20.00247564]
[1727372922262,1.59859609,156.43,156.38,12.57686734]
[1727372924569,23.902374,156.44,156.38,12.57686734]
[1727372924772,23.776884,156.42,156.35,0.3334692]
[1727372925099,1.5987701,156.41,156.36,12.57686734]
[1727372925459,23.776884,156.4,156.35,0.3334692]
[1727372925994,23.902374,156.41,156.35,0.3334692]
[1727372926287,23.902374,156.42,156.36,12.57686734]
[1727372926488,23.776884,156.43,156.36,12.57686734]
[1727372926668,23.776884,156.43,156.38,12.57686734]
[1727372927167,0.25098,156.41,156.35,0.3334692]
[1727372927376,23.776884,156.39,156.35,0.3334692]
[1727372927568,30.171284,156.39,156.35,0.3334692]
[1727372927788,1.59903261,156.38,156.35,0.3334692]
[1727372928293,23.776884,156.37,156.35,0.3334692]
[1727372928596,25.37610698,156.36,156.35,0.3334692]
[1727372928987,25.62708698,156.36,156.35,0.3334692]
[1727372929285,32.02248698,156.36,156.35,0.3334692]
[1727372929482,30.423264,156.36,156.35,0.3334692]
[1727372932769,24.027864,156.36,156.35,0.3334692]
[1727372933092,23.902374,156.36,156.35,0.3334692]
[1727372933775,32.02264711,156.36,156.35,0.3334692]
[1727372935468,52.02264711,156.36,156.35,0.3334692]
[1727372935971,68.12224711,156.36,156.35,0.3334692]
[1727372936180,30.425364,156.31,156.3,0.371402]
[1727372936978,24.027864,156.31,156.3,0.371402]